Cogmind - Beta 13 X1 @@@ ROGUE MODE // 2023.07.11 @ 11:25:25 Player: Minty Result: Destroyed by G-47 Trooper with Particle Gun Performance ------------- Evolutions (2) 1000 Regions Visited (4) 800 Robots Destroyed (66) 330 Value Destroyed (2210) 2210 Prototype IDs (1) 20 Alien Tech Used (0) 0 Bonus (179) 179 TOTAL SCORE: 4539 Bonus ------- High Alert Combat Kills 179 Cogmind --------- Core Integrity 0/550 Matter 95/300 Energy 74/100 System Corruption 1% Temperature Cool (9) Movement Core (100) Ox1 Location -8/Storage Parts ------- > --- POWER (1) -------- (None) > --- PROPULSION (4) --- (None) > --- UTILITY (2) ------ Improved Light Armor Plating Improved Light Armor Plating > --- WEAPON (4) ------- (None) > --- INVENTORY (5) ---- Heat Sink Light Armor Plating Improved Light Armor Plating Reflective Plating Drone Bay (2/2) Peak State ------------ > --- POWER ------------ Light Deuterium Engine > --- PROPULSION ------- Light Treads Light Treads Light Treads Armored Treads > --- UTILITY ---------- Improved Heat Sink Medium Storage Unit > --- WEAPON ----------- Field Laser Heavy Assault Rifle Gauss Rifle Assault Cannon > --- INVENTORY -------- Light Ion Engine Aluminum Leg Aluminum Leg Titanium Leg Heat Sink Heat Sink Light Armor Plating Reflective Plating Mini Grenade Launcher Missile Launcher [Rating: 26] Favorites ----------- Power Ion Engine Engine Ion Engine Power Core Light Nuclear Core Propulsion Light Treads Treads Light Treads Leg Aluminum Leg Flight Unit Flight Unit Utility Heat Sink Device Heat Sink Storage Medium Storage Unit Protection Reflective Plating Weapon Field Laser Energy Gun Field Laser Energy Cannon Advanced Beam Cannon Ballistic Gun Gauss Rifle Ballistic Cannon Assault Cannon Launcher Missile Launcher Build | -11 -10 -9 -8 -8 ------- Run | Jun Mat Mat Mat Sto Slots Evolved 4 | . . 2 2 . Power . | . . . . . Propulsion 2 | . . 2 . . Utility . | . . . . . Weapon 2 | . . . 2 . Parts Attached 61 | . 9 16 17 19 Power 4 | . . 1 1 2 Engine 3 | . . 1 1 1 Core 1 | . . . . 1 Reactor . | . . . . . Propulsion 26 | . 3 9 7 7 Treads 17 | . . 7 7 3 Leg 4 | . . . . 4 Wheel . | . . . . . Hover . | . . . . . Flight 5 | . 3 2 . . Utility 12 | . 2 2 2 6 Device 5 | . 1 1 2 1 Storage 2 | . 1 1 . . Processor . | . . . . . Hackware . | . . . . . Protection 5 | . . . . 5 Artifact . | . . . . . Weapon 19 | . 4 4 7 4 Energy Gun 6 | . 2 1 3 . Energy Cannon 3 | . . 3 . . Ballistic Gun 4 | . 1 . 2 1 Ballistic Cannon 2 | . 1 . 1 . Launcher 4 | . . . 1 3 Special Weapon . | . . . . . Impact Weapon . | . . . . . Slashing Weapon . | . . . . . Piercing Weapon . | . . . . . Special Melee Weapon . | . . . . . Unidentified Prototypes 1 | . . 1 . . Parts Lost 37 | . 2 7 8 20 Power 4 | . . 1 . 3 Propulsion 17 | . 1 3 5 8 Utility 4 | . . 1 . 3 Weapon 12 | . 1 2 3 6 Highest Loss Streak 13 | . 2 5 4 13 To Critical Strikes . | . . . . . Average Slot Usage (%) 80 | . 82 75 89 71 Engine 7 | . 14 6 9 4 Treads 16 | . . 9 26 23 Leg 1 | . 10 . . 3 Flight 7 | . 17 16 . . Device 8 | . 2 10 9 6 Storage 9 | . 14 11 9 7 Energy Gun 11 | . 6 4 24 5 Energy Cannon 4 | . . 11 . . Ballistic Gun 7 | . 11 4 9 8 Ballistic Cannon 2 | . 4 1 1 5 Naked Turns . | . . . . . Heaviest Build 33 | 11 13 23 32 33 Greatest Support 80 | 20 20 80 80 80 Greatest Overweight (x) 4 | . 1 3 1 4 Average Overweight (x) . | . . 1 . . Largest Inventory Capacity 10 | 8 8 10 10 10 Average Capacity 8 | 8 7 8 10 9 Most Carried 10 | 6 8 8 10 10 Average Carried 6 | 6 6 6 7 7 Final Capacity 10 | 8 8 10 10 5 Final Carried 10 | 6 5 7 10 5 Class Distribution -------------------- 43% | Scavenger-Gunner 32% | Mutant 23% | Scavenger-Mutant Dominant Class ---------------- Mutant | -10/Materials Mutant | -9/Materials Scavenger-Gunner | -8/Materials Scavenger-Gunner | -8/Storage Resources | -11 -10 -9 -8 -8 ----------- Run | Jun Mat Mat Mat Sto Matter Collected 1063 | 200 97 194 369 203 Remotely . | . . . . . Salvage Created 2452 | . 180 967 921 384 Parts 130 | . 17 52 43 18 Haulers Intercepted 2 | . . 2 . . Recyclers Shooed 6 | . . 4 2 . Parts Field Recycled . | . . . . . Retrieved Matter . | . . . . . Parts Self-Destructed . | . . . . . Prevented . | . . . . . Kills | -11 -10 -9 -8 -8 ------- Run | Jun Mat Mat Mat Sto Combat Hostiles Destroyed 49 | . 7 13 18 11 Melee 1 | . . . 1 . Guns 23 | . 7 1 13 2 Cannons 15 | . . 12 2 1 AOE 9 | . . . 1 8 Classes Destroyed 13 | . 2 5 5 1 Worker 4 | . . 2 1 1 Builder 2 | . . . 1 1 Hauler 2 | . . 2 . . Recycler 5 | . . 4 . 1 Mechanic 1 | . . . . 1 Operator 1 | . . 1 . . Watcher 2 | . . . 2 . Swarmer 9 | . 5 4 . . Grunt 22 | . 2 4 9 7 Duelist 1 | . . . 1 . Sentry 13 | . . 5 5 3 Hunter 3 | . . . 2 1 Heavy 1 | . . . 1 . Best Kill Streak 9 | . 3 7 5 9 Combat Bots Only 7 | . 3 5 5 7 Max Kills in Single Turn 3 | . 1 1 2 3 Gunslinging . | . . . . . Exploded 3 | . . . 1 3 Melee 1 | . . . 1 . Uniques/NPCs Destroyed . | . . . . . Combat | -11 -10 -9 -8 -8 -------- Run | Jun Mat Mat Mat Sto Damage Taken 4691 | . 202 732 1410 2347 Core 735 | . 52 133 276 274 Absorbed by Shields . | . . . . . Ignored by Resistances 30 | . . . . 30 Core Remaining (%) 81 | 100 79 66 . . Volleys Fired 145 | . 14 62 44 25 Largest 4 | . 2 2 4 4 Hottest 257 | . 60 136 257 166 Shots Fired 363 | . 28 112 164 59 Gun 247 | . 25 46 147 29 Cannon 99 | . 3 66 15 15 Launcher 17 | . . . 2 15 Special . | . . . . . Kinetic 144 | . 17 46 49 32 Thermal 192 | . 1 66 113 12 Explosive 17 | . . . 2 15 Electromagnetic 10 | . 10 . . . Robot Hit Streak 15 | . 4 8 15 8 Robot Miss Streak 5 | . 5 3 5 2 Penetration Max 1 | . . . 1 . Secondary Targets 4 | . 2 . 2 . Max Gunslinging Chain 1 | . 1 . 1 . Shots Hit Robots 231 | . 15 71 104 41 Core Hits 111 | . 12 24 39 36 Critical Kills 1 | . . . 1 . Critical Parts Destroyed 1 | . . . 1 . Critical Strikes 8 | . . 1 6 1 Burn 6 | . . 1 4 1 Destroy 2 | . . . 2 . Melee Attacks . | . . . . . Impact . | . . . . . Slashing . | . . . . . Piercing . | . . . . . Sneak Attacks . | . . . . . Combat Hostiles . | . . . . . Follow-up Attacks . | . . . . . Damage Inflicted 5540 | . 161 1170 2280 1929 Guns 2529 | . 144 310 1760 315 Cannons 1230 | . 17 860 163 190 Explosions 1698 | . . . 295 1403 Melee . | . . . . . Ramming 83 | . . . 62 21 Kinetic 1408 | . 84 325 614 385 Thermal 2285 | . 11 845 1309 120 Explosive 1698 | . . . 295 1403 Electromagnetic 66 | . 66 . . . Impact . | . . . . . Slashing . | . . . . . Piercing . | . . . . . Highest Corruption 1 | . . 1 . 1 Average Corruption 1 | . . 1 . 1 Corruption Purged . | . . . . . Corruption Blocked . | . . . . . Effects 3 | . . 1 . 2 Data Loss (major) 1 | . . . . 1 Misfires 1 | . . 1 . . Weapon Failures 1 | . . . . 1 Overload Shots . | . . . . . Overflow Damage 96 | . . 12 21 63 Projectiles 12 | . . 12 . . Explosions 84 | . . . 21 63 Melee . | . . . . . Knockbacks 5 | . . 2 1 2 Impact . | . . . . . Kinetic 5 | . . 2 1 2 Secondary . | . . . . . Self-Inflicted Damage 441 | . . . 53 388 Shots 14 | . . . 1 13 Rammed 20 | . . 1 15 4 Targets Rammed 27 | . . 1 17 9 Kicked 5 | . . . . 5 Crushed 2 | . . . 2 . Highest Temperature 504 | . 58 99 504 204 Average Temperature 108 | . 26 28 163 73 Received Heat Transfer 1800 | . 39 231 513 1017 Effects 8 | . . . 8 . Shutdowns 3 | . . . 3 . Energy Bleed 1 | . . . 1 . Matter Decay 1 | . . . 1 . Damage (major) 3 | . . . 3 . Siege Activations . | . . . . . Robots Corrupted . | . . . . . Combat Hostiles . | . . . . . Parts Fried . | . . . . . Impact Corruptions . | . . . . . Robots Melted 1 | . . . 1 . Combat Hostiles 1 | . . . 1 . Parts Melted 19 | . . 2 16 1 Heat Transferred 5131 | . 25 1665 3108 333 Parts Sabotaged . | . . . . . Parts Stolen . | . . . . . Parts Stripped . | . . . . . Power Chain Reactions . | . . . . . Missiles Intercepted . | . . . . . Alert | -11 -10 -9 -8 -8 ------- Run | Jun Mat Mat Mat Sto Peak Influence 663 | . 165 269 503 663 Initial 211 | . . 69 113 211 Average 277 | . 113 163 341 489 Maximum Alert Level 2 | . . 1 2 2 Low Security (%) 39 | 100 100 69 9 . Level 1 38 | . . 30 59 36 Level 2 22 | . . . 31 63 Level 3 . | . . . . . Level 4 . | . . . . . Level 5 . | . . . . . High Security . | . . . . . Max Security . | . . . . . Squads Dispatched 11 | . . 2 4 5 Investigation 4 | . . 1 1 2 Extermination . | . . . . . Reinforcement 7 | . . 1 3 3 Assault . | . . . . . Garrison . | . . . . . Intercept . | . . . . . Searches Triggered . | . . . . . Construction Impeded 3 | . . . 2 1 Haulers Reinforced . | . . . . . Active Scanning Responses . | . . . . . Cargo Convoy Interrupts . | . . . . . Stealth | -11 -10 -9 -8 -8 --------- Run | Jun Mat Mat Mat Sto Distress Signals 7 | . . 1 6 . Communications Jammed . | . . . . . Distress Signals . | . . . . . Times Spotted 74 | . 9 18 24 23 Peak Tracking Total 7 | . 3 5 6 7 Tactical Retreats 1 | . . . 1 . Traps | -11 -10 -9 -8 -8 ------- Run | Jun Mat Mat Mat Sto Traps Triggered 3 | . . 1 . 2 Indirectly . | . . . . . Trap Hack Attempts . | . . . . . Triggered . | . . . . . Disarmed . | . . . . . Reprogrammed . | . . . . . Reused . | . . . . . Traps Extracted . | . . . . . Installed . | . . . . . Triggered . | . . . . . Machines | -11 -10 -9 -8 -8 ---------- Run | Jun Mat Mat Mat Sto Machines Disabled 10 | . . 2 3 5 Max in Single Turn 2 | . . 1 1 2 Machines Repaired 1 | . . . . 1 Machines Sabotaged . | . . . . . Overloaded Fab Kills . | . . . . . Hacking | -11 -10 -9 -8 -8 --------- Run | Jun Mat Mat Mat Sto Machines Accessed 8 | . 1 2 3 2 Terminals 7 | . 1 2 2 2 Fabricators . | . . . . . Repair Stations . | . . . . . Recycling Units . | . . . . . Scanalyzers 1 | . . . 1 . Garrison Access . | . . . . . Total Hacks 17 | . 1 3 8 5 Successful 4 | . . . 2 2 Failed 13 | . 1 3 6 3 Catastrophic 6 | . 1 2 1 2 Database Lockouts . | . . . . . Manual 8 | . 1 3 3 1 Terminals 12 | . 1 3 3 5 Fabricators . | . . . . . Repair Stations . | . . . . . Recycling Units . | . . . . . Scanalyzers 5 | . . . 5 . Garrison Access . | . . . . . Terminal Hacks 1 | . . . . 1 Investigation Status 1 | . . . . 1 Fabricator Hacks . | . . . . . Repair Station Hacks . | . . . . . Recycling Unit Hacks . | . . . . . Scanalyzer 2 | . . . 2 . Insert Component 1 | . . . 1 . Analyze 1 | . . . 1 . Garrison Access Hacks . | . . . . . Unauthorized Hacks 1 | . . . . 1 Terminals 1 | . . . . 1 Sabotage 1 | . . . . 1 Fabricators . | . . . . . Repair Stations . | . . . . . Recycling Units . | . . . . . Scanalyzers . | . . . . . Garrison Access . | . . . . . Data Cores Recovered . | . . . . . Used . | . . . . . Hacking Detections 7 | . 1 2 3 1 Full Trace Events 4 | . . 1 2 1 Feedback Events 1 | . . 1 . . Corruption 1 | . . 1 . . Feedback Blocked . | . . . . . Robot Schematics Acquired . | . . . . . Robots Built . | . . . . . Authchips . | . . . . . Time . | . . . . . Total Robot Build Rating . | . . . . . Part Schematics Acquired 1 | . . . 1 . Parts Built . | . . . . . Authchips . | . . . . . Time . | . . . . . Total Part Build Rating . | . . . . . Parts Repaired . | . . . . . Time . | . . . . . Parts Recycled . | . . . . . Recycled Matter . | . . . . . Retrieved Matter . | . . . . . Retrieved Components . | . . . . . Parts Scanalyzed 1 | . . . 1 . Part Schematics Acquired 1 | . . . 1 . Parts Damaged . | . . . . . Bothacking | -11 -10 -9 -8 -8 ------------ Run | Jun Mat Mat Mat Sto Used RIF Installer . | . . . . . Robots Hacked . | . . . . . Non-combat . | . . . . . Combat . | . . . . . Robot Hacks Applied . | . . . . . Relay Couplers Released . | . . . . . Fabnet Peak Effective % . | . . . . . Robots Rewired . | . . . . . Allies Hacked . | . . . . . Hacks Repelled . | . . . . . Allies | -11 -10 -9 -8 -8 -------- Run | Jun Mat Mat Mat Sto Total Allies . | . . . . . Largest Group . | . . . . . Highest-Rated Group . | . . . . . Highest-Rated Ally . | . . . . . Total Orders . | . . . . . Ally Attacks . | . . . . . Total Damage . | . . . . . Kills . | . . . . . Allies Corrupted . | . . . . . Allies Melted . | . . . . . Intel | -11 -10 -9 -8 -8 ------- Run | Jun Mat Mat Mat Sto Robot Analysis Total . | . . . . . Derelict Logs Recovered . | . . . . . Drone Launches . | . . . . . Drone Recoveries . | . . . . . Exploration | -11 -10 -9 -8 -8 ------------- Run | Jun Mat Mat Mat Sto Turns Passed 1913 | 6 183 712 683 329 Spaces Moved 903 | 6 162 328 266 141 Core 39 | . . . . 39 Treads 453 | . . 99 266 88 Legs 56 | 6 36 . . 14 Wheels . | . . . . . Hover . | . . . . . Flight 355 | . 126 229 . . Fastest Speed 34 | 120 37 34 160 100 Average Speed 146 | 120 74 156 176 153 Slowest Speed 280 | 120 120 280 240 250 Overloaded Moves . | . . . . . Propulsion Burnouts . | . . . . . Robots Hopped . | . . . . . Cave-ins Triggered . | . . . . . Exploration Rate (%) 22 | 2 25 31 26 30 Regions Visited 4 Branch Regions 1 Pre-discovered Areas . | . . . . . Known Exits Taken . | . . . . . Unknown Exits Taken 4 | 1 1 1 1 . Scrap Searched . | . . . . . Spaces Dug 1 | . . . 1 . Terrain Destroyed 131 | . . . 27 104 Melee . | . . . . . Projectile 9 | . . . 3 6 AOE 122 | . . . 24 98 Terrain Rammed . | . . . . . Walls Destroyed . | . . . . . Machines Disabled . | . . . . . Actions | -11 -10 -9 -8 -8 --------- Run | Jun Mat Mat Mat Sto Total 1189 | 5 202 415 362 205 Wait 12 | . . . 7 5 Move 899 | 5 161 327 265 141 Hop . | . . . . . Pick Up 24 | . 10 4 8 2 Fast Attach 20 | . 2 10 4 4 Attach 22 | . 4 3 6 9 Detach 4 | . 1 2 . 1 Swap 19 | . 3 3 7 6 Drop 17 | . 7 3 4 3 Fire 145 | . 14 62 44 25 Melee . | . . . . . Ram 1 | . . 1 . . Kick 5 | . . . . 5 Crush 21 | . . . 17 4 Escape Stasis . | . . . . . Rewire . | . . . . . Trap . | . . . . . Miscellaneous . | . . . . . Route ------- -11/Junkyard -10/Materials -9/Materials -8/Materials -8/Storage History --------- Turn | Location | Event 1 | -11/Junkyard | Discovered new exit (range 3) 7 | -11/Junkyard | Entered Materials 170 | -10/Materials | Discovered new exit (range 16) 190 | -10/Materials | Entered another Materials area 190 | -9/Materials | Evolved 2 slots: Propulsion x2 489 | -9/Materials | Lost 5 parts (1p2n1u1w) 684 | -9/Materials | Build established: Mutant 891 | -9/Materials | Discovered new exit (range 8) 902 | -9/Materials | Entered another Materials area 902 | -8/Materials | Evolved 2 slots: Weapon x2 947 | -8/Materials | Discovered new exit (range 13) 1145 | -8/Materials | Lost 4 parts (4n) 1194 | -8/Materials | Build established: Scavenger-Gunner 1481 | -8/Materials | Core integrity fell below 50% 1585 | -8/Materials | Entered Storage 1774 | -8/Storage | Destroyed 7 combat bots 1835 | -8/Storage | Core integrity fell below 20% 1839 | -8/Storage | Lost 13 parts (3p4n1u5w) 1890 | -8/Storage | Lost 6 parts (4n1u1w) 1914 | -8/Storage | Destroyed by G-47 Trooper with Particle Gun Last Messages --------------- 01844_ H-55 Commando destroyed. 01844_ Aluminum Leg destroyed. 01844_ Destroyed Aluminum Leg. 01844_ Mni. Grenade Launcher destroyed. 01844_ Destroyed Mni. Grenade Launcher. 01853_ Kicked G-47 Trooper. 01854_ Kicked G-47 Trooper out of the way. 01857_ Titanium Leg destroyed. 01859_ Med. Storage Unit destroyed. 01877_ U-05 Engineer lays Concrete. 01878_ U-05 Engineer builds a Wall. 01889_ U-05 Engineer lays Concrete. 01892_ O-16 Technician: "IFF HANDSHAKE FAILED. SECURING TERMINAL." 01898_ ALERT: Hostiles spotted, dispatching reinforcements to Terminal S014. 01906_ Acquired Imp. Light Armor Plating. 01909_ Triggered Blade Trap. 01909_ Massive razor-sharp blades shoot up from within the floor. 01909_ Imp. Light Armor Plating severed. 01910_ Acquired Imp. Light Armor Plating. Map ----- +----------------------------------------------------+ | ?????????????????????????????????????????????????? | | ?????????????????????????????????????????????????? | | ?????????????????????????????????????????????????? | | ?????????????????????????????????????????????????? | | ?????????????????????????????????????????????????? | | ?????????????????????????????????????????????????? | | ?????????????????????????????????????????????????? | | ?????????????????????????????????????????????????? | | ?????????????????????????????????????????????????? | | ?????????????????????????????????????????????????? | | ?????????????????????????????????????????????????? | | ?????????????????????????????????????????????????? | | ?????????????????????????????????????????????????? | | ?????????????????????????????????????????????????? | | ?????????????????????????????????????????????????? | | ?????????????????????????????????????????????????? | | ?????????????????????????????????????????????????? | | ?????????????????????????????????????????????????? | | ?????????????????????????????????????????????????? | | ?????????????????????????????????????????????????? | | ???? ????????????????????????????????????????????? | | ???? ????????????????????????????????????????????? | | ???? #?? #####+#####?????????????????????????????? | | ???? #?? #?????????????????????????????? | | ?""" +?? #######+#?????????????????????? | | """" #?? T@ #?????????????????????? | | """" #?????????# #?????????????????????? | | """" #?????????# ^ !!! #?????????????????????? | | ? #?????????# !! #?????????????????????? | | ##/# ###???????# ### #?????????????????? | | # # ####????# #????????????????? | | # !!!#????# / ?????????????? | | # # " #????# g######+#### ## ?????????????? | | !!!!#????#gYY#??????????? #????????????????? | | # # ###????# #????????????#????????????????? | | # ##?????## ##????????????????????????????? | | # ############ #????????????????????????????? | | # #????????????????????????????? | | # +????????????????????????????? | | #????????????????????????????? | | ######"######## #????????????????????????????? | | # #??#######????????????????????????????? | | ## """" #?????????????????????????????????????? | | "??" #?????????????????????????????????????? | | # "??" #?????????????????????????????????????? | | # "??" #?????????????????????????????????????? | | # "??" #?????????????????????????????????????? | | # """" #?????????????????????????????????????? | | # #?????????????????????????????????????? | | ############?????????????????????????????????????? | +----------------------------------------------------+ Best States ------------- Heat Dissipation 45 Energy Generation 14 Energy Capacity 250 Matter Stores 300 Matter Capacity 300 Sight Range 16 Terrain Scan Density 10 Armor Coverage 300 Resistance: TH 10 Evasion (%) 62 Recoil Reduction 4 Item Schematics ----------------- Lgt. Treads | -8/Materials | Scanalyzed Robot Schematics ------------------ None Fabricated ------------ Nothing Alien Tech Used ----------------- None Achievements -------------- None Challenges ------------ None Game ------ Seed PortableXenonTube Manual? 0 Play Time 00:16:32 Cumulative 430.4 hours Start 2023.07.11 @ 11:11:58 End 2023.07.11 @ 11:25:25 Sessions 1 Manual Loads 0 Difficulty Rogue Special Mode None Game No. 312 Rogue 93 Adventurer 76 Explorer 143 Win Type - Total 22 Types 19/0/2/0/0/0/0/1/0 Lore% 65 Gallery% 86 Achievement% 71 Wizard Run 0 Options --------- ASCII 0 Keyboard 1 Movement Numpad Keybinds 0 Fullscreen 2 Font 18/X11Bold Map View 76x50 Tactical HUD 1 Map Filters NONE Filters NONE Steam 1 RUN: 43528b74-aabd-4f3c-a936-bee5c9a0ada1